bitfinex/quotes_BTCUSD_20250718
["timestamp","ask_amount","ask_price","bid_price","bid_amount"]
[1752807825621,0.66592864,120140.0,120130.0,0.19485832]
[1752807825869,0.66592864,120140.0,120130.0,0.19485826]
[1752807826082,0.69092864,120140.0,120130.0,0.18653443]
[1752807826285,0.69092864,120140.0,120130.0,0.19485826]
[1752807826502,0.71737012,120140.0,120130.0,0.18653443]
[1752807826733,0.69092864,120140.0,120130.0,0.19485826]
[1752807826937,0.29820113,120140.0,120130.0,0.19485826]
[1752807827115,0.69092864,120140.0,120130.0,0.19485826]
[1752807827329,0.29820113,120140.0,120130.0,0.19485826]
[1752807827469,0.69092864,120140.0,120130.0,0.19485826]
[1752807829222,0.55880864,120140.0,120130.0,0.19485826]
[1752807829427,0.69092864,120140.0,120130.0,0.19485826]
[1752807829883,0.29820113,120140.0,120130.0,0.19485826]
[1752807830094,0.69092864,120140.0,120130.0,0.19485826]
[1752807831528,0.10405113,120140.0,120130.0,0.21325826]
[1752807831754,0.10405113,120140.0,120130.0,0.23138826]
[1752807831942,0.23629113,120140.0,120130.0,0.22855826]
[1752807833590,0.49677864,120140.0,120130.0,0.22855826]
[1752807833803,0.73264593,120140.0,120130.0,0.19485826]
[1752807834011,0.60040593,120140.0,120130.0,0.19485826]
[1752807834193,0.73260593,120140.0,120130.0,0.19485826]
[1752807834529,0.73268593,120140.0,120130.0,0.19485826]
[1752807834734,0.94040593,120140.0,120130.0,0.01172424]
[1752807834976,0.38654085,120130.0,120120.0,0.18345844]
[1752807835184,1.02338251,120130.0,120120.0,0.1834585]
[1752807835598,1.02338251,120130.0,120120.0,0.1917833]
[1752807835806,1.02338251,120130.0,120120.0,0.20010803]
[1752807836011,1.02438251,120130.0,120120.0,0.20110803]
[1752807836220,1.02438251,120130.0,120120.0,0.19328441]
[1752807836449,1.04938651,120130.0,120120.0,0.19328441]
[1752807836815,1.04938651,120130.0,120120.0,0.18495961]
[1752807837025,1.04938651,120130.0,120120.0,0.19328441]
[1752807837244,1.49403402,120130.0,120120.0,0.00390111]
[1752807837450,0.04654085,120120.0,120110.0,0.19188627]
[1752807837653,0.04654085,120120.0,120110.0,0.1920367]
[1752807837654,1.26274615,120120.0,120110.0,0.1920367]
[1752807837851,1.26274615,120120.0,120110.0,0.19203677]
[1752807838494,1.26274615,120120.0,120110.0,0.20036198]
[1752807838841,0.47729113,120120.0,120110.0,0.20036198]
[1752807839042,1.00241864,120120.0,120110.0,0.20036198]
[1752807839837,0.97341864,120120.0,120110.0,0.22002014]
[1752807840048,1.00042264,120120.0,120110.0,0.22212014]
[1752807840255,0.35454085,120110.0,120100.0,0.16672208]
[1752807840469,0.87041864,120110.0,120100.0,0.18342478]
[1752807840684,1.01121075,120110.0,120100.0,0.19175089]
[1752807840891,1.01121075,120110.0,120100.0,0.20007693]
[1752807841105,1.01121075,120110.0,120100.0,0.18342492]
[1752807841308,1.03621875,120110.0,120100.0,0.20840311]
[1752807841522,1.03821875,120110.0,120100.0,0.20840311]
[1752807841731,1.03621875,120110.0,120100.0,0.00025013]
[1752807842144,0.94594481,120110.0,120100.0,0.18343059]
[1752807842437,0.94594481,120110.0,120100.0,0.00025013]
[1752807842628,0.04684085,120100.0,120090.0,0.1917225]
[1752807842835,1.02777069,120100.0,120090.0,0.19184788]
[1752807843052,1.06465776,120100.0,120090.0,0.19184788]
[1752807843271,0.38544085,120090.0,120080.0,0.18337032]
[1752807843493,1.19832864,120090.0,120080.0,0.19169789]
[1752807843716,1.20151864,120090.0,120080.0,0.19169789]
[1752807843921,1.30652964,120090.0,120080.0,0.19169789]
[1752807844362,0.78112213,120090.0,120080.0,0.19169789]
[1752807844610,1.30656964,120090.0,120080.0,0.19169789]
[1752807844821,1.32211701,120090.0,120080.0,0.19169789]
[1752807845042,1.31374216,120090.0,120080.0,0.19169789]
[1752807845239,1.31674216,120090.0,120080.0,0.19169789]
[1752807847061,1.31874216,120090.0,120080.0,0.19169789]
[1752807847874,1.18602216,120090.0,120080.0,0.19169789]
[1752807848105,1.31886216,120090.0,120080.0,0.19169789]
[1752807848505,1.30331479,120090.0,120080.0,0.19169789]
[1752807848872,1.31330862,120090.0,120080.0,0.19169789]
[1752807849209,1.32920862,120090.0,120080.0,0.19169789]
[1752807850282,1.32944819,120090.0,120080.0,0.19169789]
[1752807850720,1.31392037,120090.0,120080.0,0.19169789]
[1752807850922,0.23542771,120090.0,120080.0,0.19379789]
[1752807851126,0.41033671,120090.0,120080.0,0.22862789]
[1752807851288,0.54345671,120090.0,120080.0,0.22579789]
[1752807851945,0.54550671,120090.0,120080.0,0.20959789]
[1752807852112,0.54869671,120090.0,120080.0,0.20959789]
[1752807852773,0.54881671,120090.0,120080.0,0.19379789]
[1752807853316,0.56434215,120090.0,120080.0,0.19379789]
[1752807854124,0.43110215,120090.0,120080.0,0.19379789]
[1752807854327,0.54877671,120090.0,120080.0,0.19379789]
[1752807854772,0.41033671,120090.0,120080.0,0.20959789]
[1752807854932,0.41033671,120090.0,120080.0,0.22609789]
[1752807855202,0.52899586,120090.0,120080.0,0.22609789]
[1752807855399,0.54353671,120090.0,120080.0,0.22609789]
[1752807856454,0.54353671,120090.0,120080.0,0.20959789]
[1752807857277,0.54365671,120090.0,120080.0,0.20959789]
[1752807857478,0.54365671,120090.0,120080.0,0.22609789]
[1752807858743,0.54365671,120090.0,120080.0,0.18341083]
[1752807858744,0.81309819,120090.0,120080.0,0.18341083]
[1752807858963,1.4272271,120090.0,120080.0,0.0002]
[1752807859196,1.03785444,120090.0,120080.0,0.0002]
[1752807859412,0.41724545,120080.0,120070.0,0.1833747]
[1752807859630,0.41724545,120080.0,120070.0,0.00867888]
[1752807859631,0.80159811,120080.0,120070.0,0.00867888]
[1752807859848,0.95332992,120080.0,120070.0,0.19190497]
[1752807860090,0.95332992,120080.0,120070.0,0.00867895]
[1752807860298,0.95332992,120080.0,120070.0,0.00867881]
[1752807860518,0.94744032,120080.0,120070.0,0.19190476]
[1752807860726,0.94844032,120080.0,120070.0,0.19190476]
[1752807860933,0.94772744,120080.0,120070.0,0.19190476]
[1752807861138,0.56337478,120080.0,120070.0,0.19190476]
[1752807861348,0.65088506,120080.0,120070.0,0.20023274]
[1752807861561,1.01770591,120080.0,120070.0,0.20023274]
[1752807861801,1.03324412,120080.0,120070.0,0.20023274]
[1752807862023,1.03924412,120080.0,120070.0,0.20023274]
[1752807863297,1.03920412,120080.0,120070.0,0.19190476]
[1752807863535,0.65485146,120080.0,120070.0,0.20023274]
[1752807863794,1.03820412,120080.0,120070.0,0.20023274]
[1752807864005,1.03820412,120080.0,120070.0,0.20023288]
[1752807864414,1.03820412,120080.0,120070.0,0.19190476]
[1752807864613,1.03820412,120080.0,120070.0,0.20023288]
[1752807864817,1.03820412,120080.0,120070.0,0.20856093]
[1752807865075,1.04748937,120080.0,120070.0,0.19190476]
[1752807865303,1.04748937,120080.0,120070.0,0.18357657]
[1752807865517,1.05248937,120080.0,120070.0,0.18357657]
[1752807865794,1.05248937,120080.0,120070.0,0.20023267]
[1752807866026,1.05248937,120080.0,120070.0,0.20856072]
[1752807866229,1.03622937,120080.0,120070.0,0.20856072]
[1752807866652,0.50667146,120080.0,120070.0,0.20856072]
[1752807866855,0.64251146,120080.0,120070.0,0.20856072]
[1752807867057,1.03614937,120080.0,120070.0,0.20856072]
[1752807867820,1.02094937,120080.0,120070.0,0.20856072]
[1752807868028,0.49147146,120080.0,120070.0,0.20856072]
[1752807868232,0.61177325,120080.0,120070.0,0.20856072]
[1752807868436,0.09651028,120080.0,120070.0,0.24036072]
[1752807868683,0.23223028,120080.0,120070.0,0.24036072]
[1752807869218,0.24077113,120080.0,120070.0,0.24036072]
[1752807869439,0.23577113,120080.0,120070.0,0.24036072]
[1752807869639,0.23777113,120080.0,120070.0,0.24036072]
[1752807869888,0.23965113,120080.0,120070.0,0.24036072]
[1752807870101,0.23765113,120080.0,120070.0,0.24036072]
[1752807870520,0.24065113,120080.0,120070.0,0.2810474]
[1752807870697,0.24065113,120080.0,120070.0,0.24036072]
[1752807871127,0.23865113,120080.0,120070.0,0.24036072]
[1752807871376,0.24341113,120080.0,120070.0,0.24036072]
[1752807872994,0.10781113,120080.0,120070.0,0.24036072]
[1752807873358,0.24313113,120080.0,120070.0,0.32041119]
[1752807873764,0.24313113,120080.0,120070.0,0.24036072]
[1752807874203,0.10781113,120080.0,120070.0,0.24036072]
[1752807874411,0.24313113,120080.0,120070.0,0.24036072]
[1752807874636,0.18989842,120080.0,120070.0,0.20856072]
[1752807874859,1.15933572,120080.0,120070.0,0.20856072]
[1752807875193,1.13720922,120080.0,120070.0,0.20856072]
[1752807875395,1.10569781,120080.0,120070.0,0.20856072]
[1752807875607,1.10426933,120080.0,120070.0,0.20856072]
[1752807875808,1.11986705,120080.0,120070.0,0.20856072]
[1752807876814,0.72622914,120080.0,120070.0,0.20856072]
[1752807876961,1.11986705,120080.0,120070.0,0.20856072]
[1752807877597,0.98054705,120080.0,120070.0,0.20856072]
[1752807877822,1.11962705,120080.0,120070.0,0.20856072]
[1752807878052,0.58690914,120080.0,120070.0,0.20856072]
[1752807878197,1.11962705,120080.0,120070.0,0.20856072]
[1752807878392,0.72598914,120080.0,120070.0,0.20856072]
[1752807878609,0.60244885,120080.0,120070.0,0.20856072]
[1752807880088,0.58685113,120080.0,120070.0,0.24076072]
[1752807880299,0.10781113,120080.0,120070.0,0.24076072]
[1752807880558,0.24677113,120080.0,120070.0,0.24076072]
[1752807880759,0.24673113,120080.0,120070.0,0.24076072]
[1752807882783,0.10781113,120080.0,120070.0,0.24076072]
[1752807882990,0.24657113,120080.0,120070.0,0.63439863]
[1752807883196,0.24657113,120080.0,120070.0,0.7137891]
[1752807883197,0.10781113,120080.0,120070.0,0.7137891]
[1752807883519,0.24653113,120080.0,120070.0,0.32015119]
[1752807883721,0.24653113,120080.0,120070.0,0.24006072]
[1752807883934,0.24353113,120080.0,120070.0,0.24006072]
[1752807884149,0.10781113,120080.0,120070.0,0.24006072]
[1752807884345,0.24653113,120080.0,120070.0,0.24006072]
[1752807884557,0.24253113,120080.0,120070.0,0.24006072]
[1752807885201,0.24653113,120080.0,120070.0,0.24106072]
[1752807886575,0.27153913,120080.0,120070.0,0.24106072]
[1752807887027,0.27125913,120080.0,120070.0,0.24106072]
[1752807887236,0.27125913,120080.0,120070.0,0.28445014]
[1752807887435,0.27125913,120080.0,120070.0,0.24106072]
[1752807888099,0.13281913,120080.0,120070.0,0.24106072]
[1752807888307,0.27117913,120080.0,120070.0,0.24106072]
[1752807890266,0.13281913,120080.0,120070.0,0.24106072]
[1752807890499,0.27089913,120080.0,120070.0,0.24106072]
[1752807891855,0.27077913,120080.0,120070.0,0.24106072]
[1752807893022,0.27077913,120080.0,120070.0,0.22466072]
[1752807895986,0.13281913,120080.0,120070.0,0.24036072]
[1752807896186,0.27041913,120080.0,120070.0,0.24036072]
[1752807899419,0.27041913,120080.0,120070.0,0.24319072]
[1752807901192,0.13281913,120080.0,120070.0,0.24319072]
[1752807901405,0.24497113,120080.0,120070.0,0.24036072]
[1752807902618,0.10781113,120080.0,120070.0,0.24036072]
[1752807902816,0.24493113,120080.0,120070.0,0.24036072]
[1752807905833,0.10781113,120080.0,120070.0,0.24036072]
[1752807906039,0.24469113,120080.0,120070.0,0.24036072]
[1752807909075,0.10781113,120080.0,120070.0,0.24036072]
[1752807909297,0.24441113,120080.0,120070.0,0.24036072]
[1752807909491,0.24429113,120080.0,120070.0,0.24036072]
[1752807909690,0.24425113,120080.0,120070.0,0.24036072]
[1752807910551,0.24425113,120080.0,120070.0,0.24319072]
[1752807911325,1e-08,120080.0,120070.0,0.32437826]
[1752807911539,1e-08,120100.0,120090.0,0.22302218]
[1752807911762,0.008479,120110.0,120100.0,0.19150622]
[1752807911979,1.0596992,120120.0,120110.0,0.19149028]
[1752807912194,1.1959792,120120.0,120110.0,0.19149028]
[1752807912618,1.0596992,120120.0,120110.0,0.19149028]
[1752807912800,1.1959392,120120.0,120110.0,0.19149028]
[1752807913039,1.22145565,120120.0,120110.0,0.19149028]
[1752807913246,0.82792789,120120.0,120110.0,0.19149028]
[1752807913463,1.23610665,120120.0,120110.0,0.19149028]
[1752807914391,0.85086272,120120.0,120110.0,0.19149028]
[1752807914625,0.85086272,120120.0,120110.0,0.22895727]
[1752807915046,1.24450063,120120.0,120110.0,0.19149028]
[1752807915244,1.21949663,120120.0,120110.0,0.19149028]
[1752807915561,1.22098418,120120.0,120110.0,0.19249028]
[1752807917814,1.22198418,120120.0,120110.0,0.19349028]
[1752807918215,0.82834627,120120.0,120110.0,0.19349028]
[1752807918412,1.22198418,120120.0,120110.0,0.19349028]
[1752807918832,0.63243227,120120.0,120110.0,0.23115727]
[1752807919042,0.76819227,120120.0,120110.0,0.23115727]
[1752807919275,0.42819227,120120.0,120110.0,0.23115727]
[1752807920155,0.42819227,120120.0,120110.0,0.26285727]
[1752807920415,0.42819227,120120.0,120110.0,0.23115727]
[1752807920650,0.42819227,120120.0,120110.0,0.19349028]
[1752807921382,0.36180498,120120.0,120110.0,0.22539028]
[1752807921570,0.36180498,120120.0,120110.0,0.22822028]
[1752807921766,0.22604498,120120.0,120110.0,0.22822028]
[1752807921996,0.36160498,120120.0,120110.0,0.22539028]
[1752807922198,0.36160498,120120.0,120110.0,0.30589406]
[1752807924609,0.36160498,120120.0,120110.0,0.30872406]
[1752807925262,0.21150413,120120.0,120110.0,0.30872406]
[1752807925471,0.34686413,120120.0,120110.0,0.30872406]
[1752807925893,0.34686413,120120.0,120110.0,0.22822028]
[1752807926359,0.21150413,120120.0,120110.0,0.22822028]
[1752807926572,0.34674413,120120.0,120110.0,0.22539028]
[1752807926920,0.34674413,120120.0,120110.0,0.22754028]
[1752807927143,0.34674413,120120.0,120110.0,0.30825906]
[1752807927345,0.21150413,120120.0,120110.0,0.30825906]
[1752807927548,0.34678413,120120.0,120110.0,0.31108906]
[1752807928069,0.33839015,120120.0,120110.0,0.31108906]
[1752807928277,1e-08,120120.0,120110.0,0.70472697]
[1752807928687,0.02092387,120130.0,120120.0,0.22357434]
[1752807928887,0.15608387,120130.0,120120.0,0.31431396]
[1752807929054,1e-08,120130.0,120120.0,0.31431396]
[1752807929901,1e-08,120130.0,120120.0,0.22855434]
[1752807930144,1e-08,120130.0,120120.0,0.22572434]
[1752807930391,1e-08,120130.0,120120.0,0.22672434]
[1752807930392,0.002,120130.0,120120.0,0.22672434]
[1752807930602,0.13912,120130.0,120120.0,0.22772434]
[1752807930811,0.13912,120130.0,120120.0,0.27716809]
[1752807931677,0.1473941,120130.0,120120.0,0.27716809]
[1752807932534,0.13912,120130.0,120120.0,0.22772434]
[1752807933168,0.13908,120130.0,120120.0,0.22772434]
[1752807933621,0.13936,120130.0,120120.0,0.22772434]
[1752807934718,0.004,120130.0,120120.0,0.22772434]
[1752807934939,0.13936,120130.0,120120.0,0.22772434]
[1752807935981,0.13936,120130.0,120120.0,0.30846]
[1752807936945,0.004,120130.0,120120.0,0.30846]
[1752807937143,1e-08,120130.0,120120.0,0.70492791]
[1752807937655,0.72806372,120150.0,120140.0,0.19144246]
[1752807937873,0.50876457,120150.0,120140.0,0.23104888]
[1752807938100,0.37368457,120150.0,120140.0,0.23104888]
[1752807938333,0.28756643,120150.0,120140.0,0.65801679]
[1752807938559,0.42256643,120150.0,120140.0,0.26437888]
[1752807939010,0.42256643,120150.0,120140.0,0.65801679]
[1752807939328,0.43056643,120150.0,120140.0,0.66001679]
[1752807939577,0.42656643,120150.0,120140.0,0.26537888]
[1752807939757,0.42256643,120150.0,120140.0,0.26437888]
[1752807939984,0.42356643,120150.0,120140.0,0.26537888]
[1752807940194,0.42556643,120150.0,120140.0,0.26637888]
[1752807943547,0.42556643,120150.0,120140.0,0.26354888]
[1752807943778,0.42556643,120150.0,120140.0,0.21069246]
[1752807944154,0.42556643,120150.0,120140.0,0.22609246]
[1752807944744,0.42516643,120150.0,120140.0,0.22609246]
[1752807945180,0.29056643,120150.0,120140.0,0.22609246]
[1752807945400,0.42516643,120150.0,120140.0,0.22609246]
[1752807946046,0.29056643,120150.0,120140.0,0.30949067]
[1752807946231,0.42508643,120150.0,120140.0,0.30949067]
[1752807946807,0.42508643,120150.0,120140.0,0.22892246]
[1752807946989,0.42508643,120150.0,120140.0,0.62256037]
[1752807947203,0.04989147,120150.0,120140.0,0.62256037]
[1752807947399,0.02582299,120160.0,120150.0,0.19142654]
[1752807947628,0.1627443,120160.0,120150.0,0.19357654]
[1752807947830,0.14328345,120160.0,120150.0,0.27414285]
[1752807948032,0.14328345,120160.0,120150.0,0.30684285]
[1752807948241,0.06638729,120170.0,120160.0,0.1914106]
[1752807948416,0.20101762,120170.0,120160.0,0.28416807]
[1752807948896,0.06653762,120170.0,120160.0,0.30319807]
[1752807949079,0.20097762,120170.0,120160.0,0.30319807]
[1752807949280,0.06653762,120170.0,120160.0,0.30036807]
[1752807949484,0.06653762,120170.0,120160.0,0.1914106]
[1752807949485,0.3232079,120170.0,120160.0,0.1914106]
[1752807949688,0.58240581,120170.0,120160.0,0.1914106]
[1752807949849,0.73138666,120170.0,120160.0,0.1914106]
[1752807950073,0.73242666,120170.0,120160.0,0.1974106]
[1752807950866,0.59994666,120170.0,120160.0,0.1974106]
[1752807951074,0.34078875,120170.0,120160.0,0.235462]
[1752807951311,0.73242666,120170.0,120160.0,0.235462]
[1752807951521,0.73342666,120170.0,120160.0,0.2034106]
[1752807951735,0.74188173,120170.0,120160.0,0.2034106]
[1752807954288,1.08172173,120170.0,120160.0,0.2034106]
[1752807954982,1.10671573,120170.0,120160.0,0.2034106]
[1752807955194,1.50035364,120170.0,120160.0,0.1867669]
[1752807955393,1.50039364,120170.0,120160.0,0.19508885]
[1752807955546,1.10675573,120170.0,120160.0,0.20341087]
[1752807955747,1.10675573,120170.0,120160.0,0.22005458]
[1752807955984,1.1329842,120170.0,120160.0,0.20573276]
[1752807956147,1.1329842,120170.0,120160.0,0.19741087]
[1752807956430,1.52562211,120170.0,120160.0,0.19141074]
[1752807956622,1.52562211,120170.0,120160.0,0.19973249]
[1752807956827,1.53062211,120170.0,120160.0,0.19241074]
[1752807957102,1.1339842,120170.0,120160.0,0.18308892]
[1752807957314,1.1339842,120170.0,120160.0,0.19141081]
[1752807957529,1.1339842,120170.0,120160.0,0.001]
[1752807957530,1.46190442,120170.0,120160.0,0.001]
[1752807957742,5.04504085,120160.0,120150.0,0.1831041]
[1752807957955,5.04504085,120160.0,120150.0,0.19142668]
[1752807957956,5.91980695,120160.0,120150.0,0.19142668]
[1752807958147,5.94997542,120160.0,120150.0,0.19142668]
[1752807958358,5.94997542,120160.0,120150.0,0.1831041]
[1752807958600,5.94997542,120160.0,120150.0,0.19974919]
[1752807958805,5.97497342,120160.0,120150.0,0.20807163]
[1752807959628,5.97697342,120160.0,120150.0,0.20907163]
[1752807959854,5.97897342,120160.0,120150.0,0.20907163]
[1752807960205,5.97897342,120160.0,120150.0,0.19242668]
[1752807960405,6.06373658,120160.0,120140.0,0.17479571]
[1752807960607,6.02981751,120150.0,120140.0,0.00832355]
[1752807960814,0.04634085,120140.0,120130.0,0.18312162]
[1752807961012,0.87040904,120140.0,120130.0,0.19144572]
[1752807961274,0.89763751,120140.0,120130.0,0.19144572]
[1752807961576,0.89763751,120140.0,120130.0,0.17479828]
[1752807961723,1.03175751,120140.0,120130.0,0.19144655]
[1752807961927,0.38664085,120130.0,120110.0,0.17483916]
[1752807962127,1.62553542,120120.0,120110.0,0.18316479]
[1752807962404,1.49141542,120120.0,120110.0,0.19149014]
[1752807962649,1.65058242,120120.0,120110.0,0.19149014]
[1752807963254,1.65058242,120120.0,120110.0,0.19199145]
[1752807963463,1.67583928,120120.0,120110.0,0.19199145]
[1752807963689,1.67983928,120120.0,120110.0,0.19299145]
[1752807963947,1.54767928,120120.0,120110.0,0.19299145]
[1752807964143,1.2609729,120120.0,120110.0,0.19299145]
[1752807964700,0.86733499,120120.0,120110.0,0.19299145]
[1752807964906,1.2609729,120120.0,120110.0,0.19299145]
[1752807965588,0.73317499,120120.0,120110.0,0.19299145]
[1752807965791,1.2609729,120120.0,120110.0,0.19299145]
[1752807968704,1.2287529,120120.0,120110.0,0.22894338]
[1752807969336,1.2287529,120120.0,120110.0,0.19299145]
[1752807969949,1.2441529,120120.0,120110.0,0.19299145]
[1752807970156,0.85051499,120120.0,120110.0,0.19299145]
[1752807970357,1.2441529,120120.0,120110.0,0.19299145]
[1752807971420,1.2597529,120120.0,120110.0,0.19299145]
[1752807972039,1.1257129,120120.0,120110.0,0.19299145]
[1752807972275,1.2596329,120120.0,120110.0,0.19299145]
[1752807974911,1.2594729,120120.0,120110.0,0.19299145]
[1752807976089,1.2438729,120120.0,120110.0,0.19299145]
[1752807978229,1.2598729,120120.0,120110.0,0.19299145]
[1752807979118,1.22933205,120120.0,120110.0,0.19299145]
[1752807979727,1.2438729,120120.0,120110.0,0.19299145]
[1752807982007,0.83459499,120120.0,120110.0,0.23090338]
[1752807982213,0.82967499,120120.0,120110.0,0.21035145]
[1752807982420,0.82967499,120120.0,120110.0,0.22565145]
[1752807982629,0.81513414,120120.0,120110.0,0.22565145]
[1752807983060,0.82967499,120120.0,120110.0,0.22565145]
[1752807983269,0.77941113,120120.0,120110.0,0.22565145]
[1752807983480,0.29135028,120120.0,120110.0,0.22565145]
[1752807983685,0.42491028,120120.0,120110.0,0.22565145]
[1752807983909,0.43945113,120120.0,120110.0,0.22565145]
[1752807985880,0.43945113,120120.0,120110.0,0.26515238]
[1752807986123,0.43945113,120120.0,120110.0,0.22565145]
[1752807986688,0.42182891,120130.0,120120.0,0.19147434]
[1752807986892,0.98089919,120130.0,120120.0,0.19343434]
[1752807987093,0.63770919,120130.0,120120.0,0.19343434]
[1752807987235,0.21907028,120130.0,120120.0,0.22926434]
[1752807987440,0.21911028,120130.0,120120.0,0.27065734]
[1752807988227,0.22111028,120130.0,120120.0,0.26782734]
[1752807988885,0.22311028,120130.0,120120.0,0.26882734]
[1752807990564,0.38272885,120140.0,120130.0,0.1914584]
[1752807990767,0.51612885,120140.0,120130.0,0.1934184]
[1752807990983,0.38272885,120140.0,120130.0,0.1934184]
[1752807991196,0.51817885,120140.0,120130.0,0.1934184]
[1752807991618,0.99732704,120140.0,120130.0,0.1914584]
[1752807991830,1.03032704,120140.0,120130.0,0.1914584]
[1752807992043,1.03032704,120140.0,120130.0,0.1924584]
[1752807992044,1.03332704,120140.0,120130.0,0.1924584]
[1752807992273,1.06055551,120140.0,120130.0,0.1924584]
[1752807992941,1.05855551,120140.0,120130.0,0.1924584]
[1752807993356,1.05655551,120140.0,120130.0,0.1914584]
[1752807993770,1.05855551,120140.0,120130.0,0.1924584]
[1752807994172,1.03140704,120140.0,120130.0,0.1924584]
[1752807998439,0.89792704,120140.0,120130.0,0.1924584]
[1752807998641,1.03132704,120140.0,120130.0,0.1924584]
[1752807999902,1.05686784,120140.0,120130.0,0.1924584]
[1752808000119,1.05682784,120140.0,120130.0,0.1924584]
[1752808000349,1.08405631,120140.0,120130.0,0.1924584]
[1752808004076,0.04674085,120130.0,120120.0,0.19979838]
[1752808004297,0.66447904,120130.0,120120.0,0.19979838]
[1752808004895,0.53119904,120130.0,120120.0,0.19979838]
[1752808005099,0.66451904,120130.0,120120.0,0.20079838]
[1752808005579,0.66551904,120130.0,120120.0,0.20279838]
[1752808007919,0.64891904,120130.0,120120.0,0.23977975]
[1752808008116,0.23960113,120130.0,120120.0,0.20279838]
[1752808008319,0.48014819,120130.0,120120.0,0.20484838]
[1752808008531,0.39651028,120130.0,120120.0,0.23664838]
[1752808008745,0.05651028,120130.0,120120.0,0.23947838]
[1752808008954,0.20437113,120130.0,120120.0,0.28012775]
[1752808009433,0.07105113,120130.0,120120.0,0.28012775]
[1752808009649,0.59676791,120150.0,120140.0,0.19144246]
[1752808009864,0.70937619,120150.0,120140.0,0.19349246]
[1752808010070,1.19727704,120150.0,120140.0,0.19349246]
[1752808010925,1.19727704,120150.0,120140.0,0.19449246]
[1752808011861,0.83115511,120150.0,120140.0,0.19549246]
[1752808012067,1.22479302,120150.0,120140.0,0.19549246]
[1752808012947,1.19396704,120150.0,120140.0,0.25968212]
[1752808013324,1.16896904,120150.0,120140.0,0.22789246]
[1752808014243,1.03560904,120150.0,120140.0,0.22789246]
[1752808014455,1.17419904,120150.0,120140.0,0.19344246]
[1752808014877,1.20569904,120150.0,120140.0,0.19344246]
[1752808015097,1.23292751,120150.0,120140.0,0.19344246]
[1752808015514,1.25825119,120150.0,120140.0,0.19344246]
[1752808018979,1.24371034,120150.0,120140.0,0.19344246]
[1752808019194,1.15829263,120150.0,120140.0,0.18511933]
[1752808019412,1.15829249,120150.0,120140.0,0.17679599]
[1752808019651,6.37452494,120150.0,120140.0,0.17679599]
[1752808019863,6.29132494,120150.0,120140.0,0.16847244]
[1752808020075,6.43288773,120150.0,120140.0,0.16847244]
[1752808020288,6.41624229,120150.0,120140.0,0.19344295]
[1752808020468,6.41624229,120150.0,120140.0,0.20176622]
[1752808020681,6.40791978,120150.0,120140.0,0.21008949]
[1752808020906,1.42456487,120150.0,120140.0,0.20176636]
[1752808021116,6.42456473,120150.0,120140.0,0.21008963]
[1752808021534,6.42456473,120150.0,120140.0,0.19344274]
[1752808021687,6.43288738,120150.0,120140.0,0.1851194]
[1752808021868,6.42456473,120150.0,120140.0,0.18511947]
[1752808022085,6.43288738,120150.0,120140.0,0.20176622]
[1752808022315,6.40791978,120150.0,120140.0,0.21008935]
[1752808022534,5.93965228,120150.0,120140.0,0.21008935]
[1752808022758,6.21661528,120150.0,120140.0,0.20176622]
[1752808022967,6.34157263,120150.0,120140.0,0.21008949]
[1752808023174,6.34157263,120150.0,120140.0,0.19344267]
[1752808023401,6.34157263,120150.0,120140.0,0.2017658]
[1752808023615,6.34157256,120150.0,120140.0,0.20134957]
[1752808023824,6.34157249,120150.0,120140.0,0.20134957]
[1752808024425,6.19997019,120150.0,120140.0,0.20134957]
[1752808024632,6.33333019,120150.0,120140.0,0.20134957]
[1752808025864,5.93969228,120150.0,120140.0,0.20134957]
[1752808026074,6.33337019,120150.0,120140.0,0.20134957]
[1752808033124,1.11847019,120150.0,120140.0,0.20134957]
[1752808033336,1.22448172,120150.0,120140.0,0.20134957]
[1752808033903,1.30448172,120150.0,120140.0,0.20134957]
[1752808034339,1.33538172,120150.0,120140.0,0.20134957]
[1752808034574,1.32006172,120150.0,120140.0,0.20134957]
[1752808035710,1.30456172,120150.0,120140.0,0.20134957]
[1752808036782,0.91092381,120150.0,120140.0,0.20134957]
[1752808036985,1.30456172,120150.0,120140.0,0.20134957]
[1752808037190,1.30452172,120150.0,120140.0,0.20134957]
[1752808037644,1.09124172,120150.0,120140.0,0.20134957]
[1752808037856,1.22452172,120150.0,120140.0,0.20134957]
[1752808040143,1.21909172,120150.0,120140.0,0.23452957]
[1752808041481,1.22418172,120150.0,120140.0,0.21852957]
[1752808042748,1.22418172,120150.0,120140.0,0.20134957]
[1752808044550,1.22418172,120150.0,120140.0,0.20332957]
[1752808044758,1.22418172,120150.0,120140.0,0.21922957]
[1752808046746,1.22418172,120150.0,120140.0,0.20332957]
[1752808050959,1.22418172,120150.0,120140.0,0.20134957]
[1752808055905,0.83054381,120150.0,120140.0,0.20134957]
[1752808056131,1.22418172,120150.0,120140.0,0.20134957]
[1752808057591,1.35973701,120150.0,120140.0,0.20134957]
[1752808061640,0.9660991,120150.0,120140.0,0.20134957]
[1752808061852,1.35973701,120150.0,120140.0,0.20134957]
[1752808062450,1.33441333,120150.0,120140.0,0.20134957]
[1752808062959,1.13449333,120150.0,120140.0,0.20134957]
[1752808066872,1.13453081,120150.0,120140.0,0.20134957]
[1752808073054,1.62566618,120150.0,120140.0,0.20134957]
[1752808075041,0.7408929,120150.0,120140.0,0.20134957]
[1752808075256,1.62566618,120150.0,120140.0,0.20134957]
[1752808076804,1.62434618,120150.0,120140.0,0.20134957]
[1752808077342,0.6077329,120150.0,120140.0,0.20134957]
[1752808077551,0.7396529,120150.0,120140.0,0.20134957]
[1752808077812,1.62442618,120150.0,120140.0,0.20134957]
[1752808078012,0.83698954,120150.0,120140.0,0.23454957]
[1752808078270,0.01509432,120170.0,120160.0,0.2225106]
[1752808078585,0.01509432,120170.0,120160.0,0.2085106]
[1752808078586,0.57450664,120170.0,120160.0,0.2085106]
[1752808078755,0.66511692,120170.0,120160.0,0.1914106]
[1752808078955,0.54753777,120170.0,120160.0,0.1914106]
[1752808079158,0.67973777,120170.0,120160.0,0.1914106]
[1752808079563,0.68078788,120170.0,120160.0,0.1924106]
[1752808079773,0.56360189,120170.0,120160.0,0.1924106]
[1752808079980,0.69580189,120170.0,120160.0,0.1924106]
[1752808081042,0.6464861,120170.0,120160.0,0.1934106]
[1752808081202,0.5142861,120170.0,120160.0,0.1934106]
[1752808081411,0.6464061,120170.0,120160.0,0.1934106]
[1752808082773,0.5142861,120170.0,120160.0,0.1934106]
[1752808082994,0.6464061,120170.0,120160.0,0.1934106]
[1752808083234,1.44582647,120170.0,120160.0,0.19341074]
[1752808083467,6.65414766,120170.0,120160.0,0.20173249]
[1752808083682,6.27815695,120170.0,120160.0,0.20173249]
[1752808083897,0.8542861,120170.0,120160.0,0.20383249]
[1752808084108,0.9813861,120170.0,120160.0,0.23473249]
[1752808084518,0.6413861,120170.0,120160.0,0.23473249]
[1752808084731,0.40913497,120170.0,120160.0,0.23473249]
[1752808084944,0.54133497,120170.0,120160.0,0.27851384]
[1752808085409,0.01606412,120170.0,120160.0,0.27851384]
[1752808085627,0.54137497,120170.0,120160.0,0.27851384]
[1752808086489,0.01606412,120170.0,120160.0,0.27851384]
[1752808086715,0.59295085,120190.0,120180.0,0.22407875]